Cogmind - Beta 10.2 @@@ ROGUE MODE // 2021.05.07 @ 20:06:47 Player: ChromeKnight Result: Self-destructed Performance ------------- Evolutions (3) 1500 Regions Visited (12) 2400 Robots Destroyed (111) 555 Value Destroyed (4347) 4347 Prototype IDs (25) 500 Alien Tech Used (0) 0 Bonus (3150) 3150 TOTAL SCORE: 12452 Bonus ------- High Alert Combat Kills 427 Follower Combat Kills 217 Entered Garrisons 800 Used RIF Installer 1500 Aligned with FarCom 300 Friendly Fire -94 Cogmind --------- Core Integrity 165/700 Matter 295/300 Energy 290/290 System Corruption 0% Temperature Cool (0) Movement Core (700) Ox13 Location -7/Garrison Parts ------- > --- POWER (1) -------- Improved Deuterium Engine > --- PROPULSION (2) --- (None) > --- UTILITY (8) ------ Large Storage Unit Large Storage Unit Advanced Targeting Computer Hacking Suite Relay Coupler [NC] (31) Relay Coupler [Grunt] (16) Relay Coupler [Hunter] (13) > --- WEAPON (2) ------- (None) > --- INVENTORY (16) --- Relay Coupler [NC] (25) Relay Coupler [NC] (26) Relay Coupler [ARC] (9) Relay Coupler [Grunt] (27) Relay Coupler [Grunt] (27) Relay Coupler [Grunt] (25) Relay Coupler [Brawler] (26) Relay Coupler [Duelist] (24) Relay Coupler [Duelist] (30) Relay Coupler [Specialist] (23) Skeleton Box Improved Arc Projector Improved Arc Projector YOLO Cannon Segregator Peak State ------------ > --- POWER ------------ Light Nuclear Core > --- PROPULSION ------- Armored Huge Wheel > --- UTILITY ---------- Large Storage Unit Large Storage Unit Advanced Targeting Computer Weapon Cycler Weapon Cycler Hardened Medium Armor Plating Bomb Drone Bay > --- WEAPON ----------- Enhanced Autogun Enhanced Autogun > --- INVENTORY -------- Modified TNC Hardened Medium Armor Plating Hacking Suite Relay Coupler [NC] Relay Coupler [NC] Relay Coupler [Grunt] Relay Coupler [Grunt] Relay Coupler [Brawler] Relay Coupler [Duelist] Relay Coupler [Hunter] Skeleton Box YOLO Cannon Datajack [Rating: 54] Favorites ----------- Power Light Nuclear Core Engine Light Ion Engine Power Core Light Nuclear Core Propulsion Armored Huge Wheel Treads Armored Treads Leg Aluminum Leg Wheel Armored Huge Wheel Hover Unit Improved Hover Unit Utility Large Storage Unit Device Weapon Cycler Storage Large Storage Unit Processor Advanced Targeting Computer Hackware Hacking Suite Protection Improved Light Armor Plating Weapon Enhanced Autogun Energy Gun Improved Arc Projector Energy Cannon YOLO Cannon Ballistic Gun Enhanced Autogun Ballistic Cannon Advanced Assault Cannon Launcher Mini Grenade Launcher Slashing Weapon Axe Special Melee Weapon Datajack Build | -11 -10 -10 -10 -9 -8 -8 -8 -8 -7 -7 -7 -7 ------- Run | Scr Mat Min Exi Min Mat Gar Mat Gar Fac Gar Fac Gar Slots Evolved 6 | . . . . . 4 . . . 2 . . . Power . | . . . . . . . . . . . . . Propulsion . | . . . . . . . . . . . . . Utility 6 | . . . . . 4 . . . 2 . . . Weapon . | . . . . . . . . . . . . . Parts Attached 94 | 6 6 7 1 . 20 5 11 1 9 21 7 . Power 15 | 1 . 1 . . 3 2 3 1 . 3 1 . Engine 4 | 1 . . . . 1 1 . . . . 1 . Core 11 | . . 1 . . 2 1 3 1 . 3 . . Reactor . | . . . . . . . . . . . . . Propulsion 15 | 2 2 . . . 3 1 . . 1 3 3 . Treads 1 | . . . . . 1 . . . . . . . Leg 9 | 2 . . . . 1 . . . . 3 3 . Wheel 3 | . . . . . 1 1 . . 1 . . . Hover 2 | . 2 . . . . . . . . . . . Flight . | . . . . . . . . . . . . . Utility 36 | 1 2 1 1 . 6 2 7 . 7 8 1 . Device 8 | . . . . . . . 2 . 3 3 . . Storage 7 | 1 1 . . . 1 . 3 . . . 1 . Processor 5 | . . . . . 4 . 1 . . . . . Hackware 6 | . . . . . . . . . 2 4 . . Protection 10 | . 1 1 1 . 1 2 1 . 2 1 . . Artifact . | . . . . . . . . . . . . . Weapon 28 | 2 2 5 . . 8 . 1 . 1 7 2 . Energy Gun 8 | 1 . . . . 1 . . . 1 5 . . Energy Cannon 1 | . . . . . . . . . . 1 . . Ballistic Gun 12 | 1 2 3 . . 5 . 1 . . . . . Ballistic Cannon 2 | . . . . . 2 . . . . . . . Launcher 2 | . . 2 . . . . . . . . . . Special Weapon . | . . . . . . . . . . . . . Impact Weapon . | . . . . . . . . . . . . . Slashing Weapon 2 | . . . . . . . . . . . 2 . Piercing Weapon . | . . . . . . . . . . . . . Special Melee Weapon 1 | . . . . . . . . . . 1 . . Unidentified Prototypes 2 | . . . . . 1 . . . 1 . . . Parts Lost 24 | . . . . . 5 . 1 . 1 12 . 5 Power 6 | . . . . . 2 . 1 . . 3 . . Propulsion 3 | . . . . . . . . . . 1 . 2 Utility 6 | . . . . . 2 . . . . 3 . 1 Weapon 9 | . . . . . 1 . . . 1 5 . 2 Highest Loss Streak 6 | . . . . . 2 . 1 . 1 6 . 5 Average Slot Usage (%) 89 | . 98 100 100 100 84 90 90 90 89 80 95 97 Engine 2 | . 14 7 . . 2 3 . . . . . 7 Core 6 | . . 7 14 14 6 5 9 9 7 5 6 . Leg 3 | . 22 . . . 1 . . . . 6 15 14 Wheel 4 | . . . . . 3 9 9 9 7 3 . . Hover 4 | . 5 28 28 28 . . . . . . . . Device 5 | . . . . . . . 12 18 15 5 7 6 Storage 16 | . 14 14 14 14 17 18 18 18 15 15 15 15 Processor 11 | . . . . . 23 25 11 9 7 7 7 7 Hackware 6 | . . . . . . . . . 8 22 30 30 Protection 8 | . 12 14 14 14 5 10 11 9 12 1 . . Energy Gun 1 | . . . . . . . . . . 4 7 6 Ballistic Gun 14 | . 27 27 28 28 11 18 18 18 13 3 . . Ballistic Cannon 1 | . . . . . 6 . . . . . . . Naked Turns . | . . . . . . . . . . . . . Heaviest Build 61 | 10 32 34 34 34 54 49 53 53 61 53 51 51 Greatest Support 33 | 20 20 16 16 16 28 28 28 28 28 28 33 33 Greatest Overweight (x) 15 | . 3 2 2 2 4 1 1 1 2 10 1 15 Average Overweight (x) 1 | . . 1 2 2 1 1 1 1 1 1 1 1 Largest Inventory Capacity 16 | 6 10 10 10 10 16 16 16 16 16 16 16 16 Average Capacity 14 | 5 8 10 10 10 15 16 16 16 16 16 16 16 Most Carried 16 | . 10 10 10 10 16 16 16 16 16 16 16 16 Average Carried 13 | . 6 9 9 10 12 15 15 16 14 15 15 16 Final Capacity 16 | 6 10 10 10 10 16 16 16 16 16 16 16 16 Final Carried 16 | . 10 10 10 10 16 16 16 16 14 16 16 16 Class Distribution -------------------- 49% | Mutant 37% | Bothacker-Mutant 8% | Commander-Mutant 4% | Scavenger-Mutant Dominant Class ---------------- Mutant | -10/Materials Mutant | -10/Mines Mutant | -10/Exiles Mutant | -9/Mines Mutant | -8/Materials Mutant | -8/Garrison Bothacker-Mutant | -8/Materials Bothacker-Mutant | -8/Garrison Bothacker-Mutant | -7/Factory Bothacker-Mutant | -7/Garrison Commander-Mutant | -7/Factory Commander-Mutant | -7/Garrison Resources | -11 -10 -10 -10 -9 -8 -8 -8 -8 -7 -7 -7 -7 ----------- Run | Scr Mat Min Exi Min Mat Gar Mat Gar Fac Gar Fac Gar Matter Collected 3105 | 216 230 254 10 . 797 227 639 142 229 321 40 . Remotely . | . . . . . . . . . . . . . Salvage Created 4171 | . 156 92 . . 1048 412 1256 418 302 487 . . Parts 233 | . 7 4 . . 80 34 68 14 10 16 . . Haulers Intercepted 1 | . . . . . 1 . . . . . . . Recyclers Shooed 3 | . . 1 . . . . 1 . 1 . . . Parts Field Recycled . | . . . . . . . . . . . . . Retrieved Matter . | . . . . . . . . . . . . . Parts Self-Destructed . | . . . . . . . . . . . . . Prevented . | . . . . . . . . . . . . . Kills | -11 -10 -10 -10 -9 -8 -8 -8 -8 -7 -7 -7 -7 ------- Run | Scr Mat Min Exi Min Mat Gar Mat Gar Fac Gar Fac Gar Combat Hostiles Destroyed 88 | . 5 1 . . 25 16 20 8 3 10 . . Melee 1 | . . . . . . . . . . 1 . . Guns 79 | . 5 1 . . 20 16 20 8 3 6 . . Cannons 6 | . . . . . 5 . . . . 1 . . AOE 1 | . . . . . . . . . . 1 . . Classes Destroyed 14 | . 3 2 . . 5 . 2 1 1 . . . Worker 8 | . 1 1 . . 2 . 3 . 1 . . . Builder 4 | . . . . . 2 . 2 . . . . . Tunneler 1 | . . . . . . . . . 1 . . . Hauler 1 | . . . . . 1 . . . . . . . Recycler 6 | . . 1 . . 3 . 1 . 1 . . . Operator 1 | . . . . . . . 1 . . . . . Watcher 3 | . . . . . 3 . . . . . . . Swarmer 26 | . 3 . . . 11 12 . . . . . . Grunt 40 | . 2 . . . 7 2 13 7 2 7 . . Brawler 1 | . . . . . . . . 1 . . . . Duelist 2 | . . . . . . . 1 . . 1 . . Sentry 16 | . . . . . 6 2 5 . 1 2 . . Hunter 2 | . . . . . 1 . 1 . . . . . Assembled 1 | . . 1 . . . . . . . . . . Best Kill Streak 9 | . 3 2 . . 6 9 4 4 2 4 . . Combat Bots Only 9 | . 3 1 . . 5 9 3 4 2 4 . . Max Kills in Single Turn 2 | . 1 1 . . 2 2 1 1 1 1 . . Gunslinging 1 | . . . . . 1 1 . . . . . . Exploded 1 | . . . . . . . . . . 1 . . Melee 1 | . . . . . . . . . . 1 . . Uniques/NPCs Destroyed . | . . . . . . . . . . . . . Combat | -11 -10 -10 -10 -9 -8 -8 -8 -8 -7 -7 -7 -7 -------- Run | Scr Mat Min Exi Min Mat Gar Mat Gar Fac Gar Fac Gar Damage Taken 4957 | . 173 63 . . 1106 351 769 306 214 1158 18 799 Core 863 | . 21 . . . 184 23 52 48 20 277 . 238 Absorbed by Shields 40 | . . . . . . 15 . . . 25 . . Core Remaining (%) 78 | 100 . . . 91 . . . 44 . . . . Volleys Fired 327 | . 23 12 . . 74 34 84 26 24 50 . . Largest 2 | . 2 2 . . 2 2 2 2 2 2 . . Hottest 130 | . 46 53 . . 96 50 50 50 50 130 . . Shots Fired 598 | . 46 24 . . 140 68 168 52 40 60 . . Gun 549 | . 46 16 . . 100 68 168 52 40 59 . . Cannon 41 | . . . . . 40 . . . . 1 . . Launcher 8 | . . 8 . . . . . . . . . . Special . | . . . . . . . . . . . . . Kinetic 573 | . 46 16 . . 140 68 168 52 40 43 . . Thermal 12 | . . . . . . . . . . 12 . . Explosive 8 | . . 8 . . . . . . . . . . Electromagnetic 5 | . . . . . . . . . . 5 . . Robot Hit Streak 16 | . 7 5 . . 13 11 16 12 12 16 . . Robot Miss Streak 4 | . 2 1 . . 4 4 3 4 2 2 . . Penetration Max . | . . . . . . . . . . . . . Secondary Targets 15 | . . . . . 5 6 1 3 . . . . Max Gunslinging Chain 1 | . . . . . 1 1 1 1 . . . . Shots Hit Robots 424 | . 31 6 . . 106 43 125 37 27 49 . . Core Hits 190 | . 7 8 . . 57 19 51 16 11 21 . . Critical Hits 2 | . . . . . 1 . . . . 1 . . Critical Kills 1 | . . . . . 1 . . . . . . . Critical Parts Destroyed 1 | . . . . . . . . . . 1 . . Melee Attacks 8 | . . . . . . . . . . 7 . 1 Impact . | . . . . . . . . . . . . . Slashing 1 | . . . . . . . . . . . . 1 Piercing . | . . . . . . . . . . . . . Sneak Attacks 5 | . . . . . . . . . . 5 . . Combat Hostiles 2 | . . . . . . . . . . 2 . . Follow-up Attacks . | . . . . . . . . . . . . . Damage Inflicted 7520 | . 463 126 . . 2106 746 2066 678 457 878 . . Guns 6573 | . 463 71 . . 1342 746 2066 678 457 750 . . Cannons 886 | . . . . . 764 . . . . 122 . . Explosions 55 | . . 55 . . . . . . . . . . Melee . | . . . . . . . . . . . . . Ramming 6 | . . . . . . . . . . 6 . . Kinetic 7133 | . 463 71 . . 2106 746 2066 678 457 546 . . Thermal 261 | . . . . . . . . . . 261 . . Explosive 55 | . . 55 . . . . . . . . . . Electromagnetic 65 | . . . . . . . . . . 65 . . Impact . | . . . . . . . . . . . . . Slashing . | . . . . . . . . . . . . . Piercing . | . . . . . . . . . . . . . Highest Corruption . | . . . . . . . . . . . . . Average Corruption . | . . . . . . . . . . . . . Corruption Purged . | . . . . . . . . . . . . . Overload Shots . | . . . . . . . . . . . . . Overflow Damage 47 | . . . . . 2 . . . . 45 . . Projectiles 2 | . . . . . 2 . . . . . . . Explosions 45 | . . . . . . . . . . 45 . . Melee . | . . . . . . . . . . . . . Knockbacks 1 | . . . . . 1 . . . . . . . Impact . | . . . . . . . . . . . . . Kinetic 1 | . . . . . 1 . . . . . . . Secondary . | . . . . . . . . . . . . . Self-Inflicted Damage 98 | . . 40 . . . . . . . 58 . . Shots 3 | . . 2 . . . . . . . 1 . . Rammed 1 | . . . . . . . . . . 1 . . Targets Rammed 1 | . . . . . . . . . . 1 . . Kicked . | . . . . . . . . . . . . . Crushed . | . . . . . . . . . . . . . Highest Temperature 357 | . 26 36 . . 81 55 249 357 197 142 . . Average Temperature 54 | . 13 9 . . 26 15 69 126 78 28 . . Received Heat Transfer 1437 | . 78 12 . . 315 72 279 180 72 348 9 72 Effects 2 | . . . . . . . 2 . . . . . Energy Bleed 1 | . . . . . . . 1 . . . . . Interference 1 | . . . . . . . 1 . . . . . Siege Activations . | . . . . . . . . . . . . . Robots Corrupted . | . . . . . . . . . . . . . Combat Hostiles . | . . . . . . . . . . . . . Parts Fried . | . . . . . . . . . . . . . Impact Corruptions . | . . . . . . . . . . . . . Robots Melted 1 | . . . . . . . . . . 1 . . Combat Hostiles 1 | . . . . . . . . . . 1 . . Parts Melted 4 | . . . . . . . . . . 4 . . Heat Transferred 413 | . . . . . . . . . . 413 . . Parts Sabotaged . | . . . . . . . . . . . . . Parts Stolen . | . . . . . . . . . . . . . Parts Stripped . | . . . . . . . . . . . . . Power Chain Reactions . | . . . . . . . . . . . . . Missiles Intercepted . | . . . . . . . . . . . . . Alert | -11 -10 -10 -10 -9 -8 -8 -8 -8 -7 -7 -7 -7 ------- Run | Scr Mat Min Exi Min Mat Gar Mat Gar Fac Gar Fac Gar Peak Influence 833 | . 146 107 . . 449 781 599 560 454 598 833 583 Initial 583 | . . 56 . . . 221 380 375 294 317 289 583 Average 369 | . 31 38 . . 276 561 404 421 367 527 472 580 Maximum Alert Level 3 | . . . . . 2 3 2 2 2 2 3 2 Low Security (%) 19 | 100 100 100 . 100 21 . . . . . . . Level 1 35 | . . . . . 61 31 48 67 83 6 64 . Level 2 41 | . . . . . 16 47 51 32 16 93 5 100 Level 3 3 | . . . . . . 21 . . . . 30 . Level 4 . | . . . . . . . . . . . . . Level 5 . | . . . . . . . . . . . . . High Security . | . . . . . . . . . . . . . Max Security . | . . . . . . . . . . . . . Squads Dispatched 6 | . . . . . 1 . 4 . 1 . . . Investigation 2 | . . . . . 1 . 1 . . . . . Extermination . | . . . . . . . . . . . . . Reinforcement 3 | . . . . . . . 2 . 1 . . . Assault . | . . . . . . . . . . . . . Garrison 1 | . . . . . . . 1 . . . . . Intercept . | . . . . . . . . . . . . . Construction Impeded . | . . . . . . . . . . . . . Haulers Reinforced . | . . . . . . . . . . . . . Stealth | -11 -10 -10 -10 -9 -8 -8 -8 -8 -7 -7 -7 -7 --------- Run | Scr Mat Min Exi Min Mat Gar Mat Gar Fac Gar Fac Gar Distress Signals 5 | . . . . . 3 . 2 . . . . . Communications Jammed . | . . . . . . . . . . . . . Distress Signals . | . . . . . . . . . . . . . Times Spotted 150 | . 7 4 . . 37 15 34 8 7 26 3 9 Peak Tracking Total 9 | . 2 2 . . 5 4 8 5 2 8 3 9 Tactical Retreats 8 | . . . . . 1 . 2 . 1 2 1 1 Traps | -11 -10 -10 -10 -9 -8 -8 -8 -8 -7 -7 -7 -7 ------- Run | Scr Mat Min Exi Min Mat Gar Mat Gar Fac Gar Fac Gar Traps Triggered 16 | . . . . . 1 8 1 2 1 2 1 . Indirectly . | . . . . . . . . . . . . . Trap Hack Attempts . | . . . . . . . . . . . . . Triggered . | . . . . . . . . . . . . . Disarmed . | . . . . . . . . . . . . . Reprogrammed . | . . . . . . . . . . . . . Reused . | . . . . . . . . . . . . . Traps Extracted . | . . . . . . . . . . . . . Installed . | . . . . . . . . . . . . . Triggered . | . . . . . . . . . . . . . Machines | -11 -10 -10 -10 -9 -8 -8 -8 -8 -7 -7 -7 -7 ---------- Run | Scr Mat Min Exi Min Mat Gar Mat Gar Fac Gar Fac Gar Machines Disabled 31 | . . . . . 2 2 1 . . 2 24 . Max in Single Turn 1 | . . . . . 1 1 1 . . 1 . . Garrison Relay 5 | . . . . . . 2 . . . 3 . . Machines Sabotaged . | . . . . . . . . . . . . . Garrisons Compromised . | . . . . . . . . . . . . . Overloaded Fab Kills . | . . . . . . . . . . . . . Fab Network Shutdowns . | . . . . . . . . . . . . . Hacking | -11 -10 -10 -10 -9 -8 -8 -8 -8 -7 -7 -7 -7 --------- Run | Scr Mat Min Exi Min Mat Gar Mat Gar Fac Gar Fac Gar Machines Accessed 9 | . 1 1 1 . 2 . 2 . 1 . 1 . Terminals 3 | . 1 . . . 1 . 1 . . . . . Fabricators . | . . . . . . . . . . . . . Repair Stations . | . . . . . . . . . . . . . Recycling Units . | . . . . . . . . . . . . . Scanalyzers . | . . . . . . . . . . . . . Garrison Access 4 | . . . . . 1 . 1 . 1 . 1 . Total Hacks 14 | . 2 1 1 . 2 . 6 . 1 . 1 . Successful 8 | . 1 1 1 . 1 . 2 . 1 . 1 . Failed 6 | . 1 . . . 1 . 4 . . . . . Catastrophic 1 | . . . . . 1 . . . . . . . Database Lockouts . | . . . . . . . . . . . . . Manual 9 | . 2 . 1 . 1 . 5 . . . . . Terminals 8 | . 2 . . . 1 . 5 . . . . . Fabricators . | . . . . . . . . . . . . . Repair Stations . | . . . . . . . . . . . . . Recycling Units . | . . . . . . . . . . . . . Scanalyzers . | . . . . . . . . . . . . . Garrison Access 4 | . . . . . 1 . 1 . 1 . 1 . Terminal Hacks 3 | . 1 1 1 . . . . . . . . . Robot Analysis 1 | . 1 . . . . . . . . . . . Open Door 1 | . . 1 . . . . . . . . . . EX-Prototype ID Bank 1 | . . . 1 . . . . . . . . . Fabricator Hacks . | . . . . . . . . . . . . . Repair Station Hacks . | . . . . . . . . . . . . . Recycling Unit Hacks . | . . . . . . . . . . . . . Scanalyzer . | . . . . . . . . . . . . . Garrison Access Hacks 4 | . . . . . 1 . 1 . 1 . 1 . Unlock Access 4 | . . . . . 1 . 1 . 1 . 1 . Unauthorized Hacks 1 | . . . . . . . 1 . . . . . Terminals 1 | . . . . . . . 1 . . . . . Assimilate 1 | . . . . . . . 1 . . . . . Fabricators . | . . . . . . . . . . . . . Repair Stations . | . . . . . . . . . . . . . Recycling Units . | . . . . . . . . . . . . . Scanalyzers . | . . . . . . . . . . . . . Garrison Access . | . . . . . . . . . . . . . Data Cores Recovered . | . . . . . . . . . . . . . Used . | . . . . . . . . . . . . . Hacking Detections 3 | . . . . . 1 . 1 . . . 1 . Full Trace Events . | . . . . . . . . . . . . . Feedback Events . | . . . . . . . . . . . . . Feedback Blocked . | . . . . . . . . . . . . . Robot Schematics Acquired . | . . . . . . . . . . . . . Robots Built . | . . . . . . . . . . . . . Matter . | . . . . . . . . . . . . . Time . | . . . . . . . . . . . . . Total Robot Build Rating . | . . . . . . . . . . . . . Part Schematics Acquired . | . . . . . . . . . . . . . Parts Built . | . . . . . . . . . . . . . Matter . | . . . . . . . . . . . . . Time . | . . . . . . . . . . . . . Total Part Build Rating . | . . . . . . . . . . . . . Parts Repaired . | . . . . . . . . . . . . . Time . | . . . . . . . . . . . . . Parts Recycled . | . . . . . . . . . . . . . Recycled Matter . | . . . . . . . . . . . . . Retrieved Matter . | . . . . . . . . . . . . . Retrieved Components . | . . . . . . . . . . . . . Parts Scanalyzed . | . . . . . . . . . . . . . Part Schematics Acquired . | . . . . . . . . . . . . . Parts Damaged . | . . . . . . . . . . . . . Bothacking | -11 -10 -10 -10 -9 -8 -8 -8 -8 -7 -7 -7 -7 ------------ Run | Scr Mat Min Exi Min Mat Gar Mat Gar Fac Gar Fac Gar Used RIF Installer 3 | . . . . . . 1 . 1 . 1 . . Command Fork 1 | . . . . . . . . . . 1 . . Signal Jammer 1 | . . . . . . . . 1 . . . . Robots Hacked 1 | . . . . . . . . . . 1 . . Non-combat . | . . . . . . . . . . . . . Combat 1 | . . . . . . . . . . 1 . . Robot Hacks Applied 1 | . . . . . . . . . . 1 . . formatsys_high 1 | . . . . . . . . . . 1 . . Relay Couplers Released 18 | . . . . . . 8 . . . 10 . . Machine Destruction 18 | . . . . . . 8 . . . 10 . . Attached 4 | . . . . . . . . . . 4 . . Robots Rewired 9 | . . . . . . . . . . 9 . . Allies Hacked . | . . . . . . . . . . . . . Hacks Repelled . | . . . . . . . . . . . . . Allies | -11 -10 -10 -10 -9 -8 -8 -8 -8 -7 -7 -7 -7 -------- Run | Scr Mat Min Exi Min Mat Gar Mat Gar Fac Gar Fac Gar Total Allies 15 | . . 4 . . . . 1 . . 10 . . Largest Group 8 | . . 3 1 . . . 1 . . 8 8 6 Highest-Rated Group 139 | . . 55 31 . . . 10 . . 139 139 111 Highest-Rated Ally 31 | . . 31 31 . . . 10 . . 21 21 21 Total Orders 9 | . . . . . . . . . . 8 . 1 STAY 4 | . . . . . . . . . . 3 . 1 FOLLOW 1 | . . . . . . . . . . 1 . . EXPLORE 2 | . . . . . . . . . . 2 . . RETURN 2 | . . . . . . . . . . 2 . . Ally Attacks 64 | . . 18 . . . . . . . 22 24 . Total Damage 627 | . . 184 . . . . . . . 58 385 . Kills 10 | . . 3 . . . . . . . . 7 . Allies Corrupted . | . . . . . . . . . . . . . Allies Melted . | . . . . . . . . . . . . . Intel | -11 -10 -10 -10 -9 -8 -8 -8 -8 -7 -7 -7 -7 ------- Run | Scr Mat Min Exi Min Mat Gar Mat Gar Fac Gar Fac Gar Robot Analysis Total 1 | . 1 . . . . . . . . . . . Derelict Logs Recovered 1 | . . 1 . . . . . . . . . . Drone Launches 25 | . . . . . . . . . . 25 . . Drone Recoveries 9 | . . . . . . . . . . 9 . . Exploration | -11 -10 -10 -10 -9 -8 -8 -8 -8 -7 -7 -7 -7 ------------- Run | Scr Mat Min Exi Min Mat Gar Mat Gar Fac Gar Fac Gar Turns Passed 7252 | 47 385 600 392 46 1222 647 1299 456 318 1443 253 144 Spaces Moved 4039 | 37 229 373 220 27 597 443 631 204 210 820 159 89 Core 12 | 8 . . . . . . . . . 3 . 1 Treads 180 | . . . . . 180 . . . . . . . Legs 829 | 29 186 . . . 7 . . . . 360 159 88 Wheels 2331 | . . . . . 386 443 631 204 210 457 . . Hover 687 | . 43 373 220 27 24 . . . . . . . Flight . | . . . . . . . . . . . . . Fastest Speed 50 | 50 116 116 176 176 110 110 110 110 110 110 150 150 Average Speed 130 | 104 126 139 176 176 145 110 110 110 116 135 150 157 Slowest Speed 800 | 120 240 176 176 176 240 110 110 110 120 550 150 800 Overloaded Moves . | . . . . . . . . . . . . . Propulsion Burnouts . | . . . . . . . . . . . . . Robots Hopped 1 | . . . . . . . . . . 1 . . Cave-ins Triggered . | . . . . . . . . . . . . . Exploration Rate (%) 39 | 3 37 69 60 14 56 74 58 32 8 75 5 23 Regions Visited 12 Branch Regions 3 Pre-discovered Areas . | . . . . . . . . . . . . . Known Exits Taken 4 | . . . . . 1 . 1 . 1 . 1 . Unknown Exits Taken 5 | 1 1 1 1 1 . . . . . . . . Scrap Searched 1 | . . . . 1 . . . . . . . . Spaces Dug . | . . . . . . . . . . . . . Terrain Destroyed 83 | . . 60 . . 5 . . . . 18 . . Melee . | . . . . . . . . . . . . . Projectile 5 | . . . . . 5 . . . . . . . AOE 78 | . . 60 . . . . . . . 18 . . Terrain Rammed . | . . . . . . . . . . . . . Walls Destroyed . | . . . . . . . . . . . . . Machines Disabled . | . . . . . . . . . . . . . Actions | -11 -10 -10 -10 -9 -8 -8 -8 -8 -7 -7 -7 -7 --------- Run | Scr Mat Min Exi Min Mat Gar Mat Gar Fac Gar Fac Gar Total 5637 | 42 277 429 227 26 814 564 1178 422 272 1119 177 90 Wait 943 | . 5 30 . . 101 5 440 176 26 155 5 . Move 4022 | 36 228 372 219 26 596 441 630 202 209 816 158 89 Hop 1 | . . . . . . . . . . 1 . . Pick Up 44 | . 10 3 3 . 8 8 3 . . 9 . . Fast Attach 56 | 6 5 1 . . 17 2 3 . 6 13 3 . Attach 12 | . . . . . 1 2 . . 3 6 . . Detach 4 | . . . . . . . . . 1 2 1 . Swap 26 | . 1 6 1 . 2 1 8 1 . 2 4 . Drop 66 | . 5 5 4 . 15 8 10 1 3 9 6 . Fire 327 | . 23 12 . . 74 34 84 26 24 50 . . Melee 8 | . . . . . . . . . . 7 . 1 Ram . | . . . . . . . . . . . . . Kick 1 | . . . . . . . . . . 1 . . Crush . | . . . . . . . . . . . . . Escape Stasis 93 | . . . . . . 63 . 16 . 14 . . Rewire 34 | . . . . . . . . . . 34 . . Trap . | . . . . . . . . . . . . . Miscellaneous . | . . . . . . . . . . . . . Route ------- -11/Scrapyard -10/Materials (discovered 2 exits: [*Mat] / *Min) -10/Mines -10/Exiles -9/Mines -8/Materials (discovered 2 exits: *Fac / Gar) -8/Garrison (discovered 3 exits: *Mat x3) -8/Materials (discovered 3 exits: *Fac x2 / Gar) -8/Garrison -7/Factory (discovered 2 exits: [*Low] / Gar) -7/Garrison (discovered 3 exits: *Fac x3) -7/Factory -7/Garrison History --------- Turn | Location | Event 8 | -11/Scrapyard | Discovered new exit (range 16) 48 | -11/Scrapyard | Entered Materials 220 | -10/Materials | Discovered new exit (range 13) 311 | -10/Materials | Build established: Mutant 410 | -10/Materials | Discovered new exit (range 15) 433 | -10/Materials | Entered Mines 465 | -10/Mines | Learned Materials stockpile data 515 | -10/Mines | Met a Derelict bent on vengeance 531 | -10/Mines | Excavation squad dispatched 531 | -10/Mines | A large section of the Mines collapsed 558 | -10/Mines | Found the Drone Emporium 565 | -10/Mines | Found Prototype Device 619 | -10/Mines | Assisted by bots powering up and referring to "LRC-V3" 781 | -10/Mines | Excavation squad dispatched 934 | -10/Mines | Received a Mining Laser from a helpful Derelict 1000 | -10/Mines | Deemed a non-threat by the Exiles lab entrance 1002 | -10/Mines | Discovered new exit (range 5) 1033 | -10/Mines | Entered Exiles 1033 | -10/Exiles | Accompanied by 1 ally 1077 | -10/Exiles | Met 8R-AWN 1106 | -10/Exiles | Met EX-HEX 1153 | -10/Exiles | Met EX-BIN 1176 | -10/Exiles | Aligned with FarCom system 1178 | -10/Exiles | Given EX-Vault access code 1229 | -10/Exiles | Opened EX-Vault 1241 | -10/Exiles | Found Modified TNC 1246 | -10/Exiles | Found YOLO Cannon 1250 | -10/Exiles | Found Skeleton Box 1288 | -10/Exiles | Warned to stay clear of 0b10 Research branches 1348 | -10/Exiles | Met EX-DEC 1410 | -10/Exiles | Discovered new exit (range 11) 1425 | -10/Exiles | Stole three prototypes: Modified TNC, YOLO Cannon, Skeleton Box 1425 | -10/Exiles | Entered Mines 1445 | -9/Mines | Discovered new exit (range 10) 1471 | -9/Mines | Entered Materials 1471 | -8/Materials | Evolved 4 slots: Utility x4 2231 | -8/Materials | Discovered new exit (range 7) 2692 | -8/Materials | Identified exit to Garrison 2693 | -8/Materials | Entered Garrison 2708 | -8/Garrison | Triggered checkpoint 2756 | -8/Garrison | Triggered checkpoint 2766 | -8/Garrison | Garrison Relay disabled 2966 | -8/Garrison | Triggered checkpoint 2970 | -8/Garrison | Destroyed 9 combat bots 3016 | -8/Garrison | Discovered new exit (range 9) 3131 | -8/Garrison | Discovered new exit (range 21) 3161 | -8/Garrison | Installed Relay Interface Framework 3188 | -8/Garrison | Triggered checkpoint 3234 | -8/Garrison | Garrison Relay disabled 3282 | -8/Garrison | Triggered checkpoint 3316 | -8/Garrison | Discovered new exit (range 21) 3340 | -8/Garrison | Entered Materials 3701 | -8/Materials | Discovered new exit (range 8) 3768 | -8/Materials | Build established: Bothacker-Mutant 4203 | -8/Materials | Discovered new exit (range 15) 4638 | -8/Materials | Identified exit to Garrison 4639 | -8/Materials | Entered Garrison 4645 | -8/Garrison | Expanded RIF knowledge: Signal Jamming 4731 | -8/Garrison | Triggered checkpoint 4928 | -8/Garrison | Triggered checkpoint 4945 | -8/Garrison | Core integrity fell below 50% 5064 | -8/Garrison | Discovered new exit (range 10) 5095 | -8/Garrison | Entered Factory 5095 | -7/Factory | Evolved 2 slots: Utility x2 5097 | -7/Factory | FarCom data flow suspended 5114 | -7/Factory | Identified Bomb Drone Bay 5246 | -7/Factory | Discovered new exit (range 4) 5412 | -7/Factory | Identified exit to Garrison 5413 | -7/Factory | Entered Garrison 5514 | -7/Garrison | Triggered checkpoint 5529 | -7/Garrison | Garrison Relay disabled 5666 | -7/Garrison | Discovered new exit (range 40) 5700 | -7/Garrison | Triggered checkpoint 5714 | -7/Garrison | Triggered checkpoint 5741 | -7/Garrison | Discovered new exit (range 45) 5757 | -7/Garrison | Discovered new exit (range 59) 5758 | -7/Garrison | Triggered checkpoint 5792 | -7/Garrison | Triggered checkpoint 5798 | -7/Garrison | Triggered checkpoint 5810 | -7/Garrison | Triggered checkpoint 5869 | -7/Garrison | Expanded RIF knowledge: Command Fork 5908 | -7/Garrison | Garrison Relay disabled 5967 | -7/Garrison | Garrison Relay disabled 6209 | -7/Garrison | Lost 6 parts (1p1n2u2w) 6623 | -7/Garrison | Build established: Scavenger-Mutant 6654 | -7/Garrison | Lost 3 parts (1u2w) 6856 | -7/Garrison | Entered Factory 6856 | -7/Factory | Accompanied by 8 allies 6972 | -7/Factory | Build established: Commander-Mutant 7103 | -7/Factory | Identified exit to Garrison 7109 | -7/Factory | Entered Garrison 7109 | -7/Garrison | Accompanied by 6 allies 7232 | -7/Garrison | Triggered checkpoint 7240 | -7/Garrison | Core integrity fell below 50% 7242 | -7/Garrison | Triggered checkpoint 7253 | -7/Garrison | Self-destructed Last Messages --------------- 07090_ U-05 Engineer builds a Wall. 07098_ Dropped Lgt. Nuclear Core. 07099_ Acquired Imp. Deuterium Engine. 07103_ Connecting with Garrison Access... 07103_ Current location identified: Factory >>Unlock Access door unlocked. 07103_ EXIT=UNLOCKED: GARRISON LOCATION=GARRISON GOAL=ESCAPE 07226_ C-30 ARC bursts open, deploying its payload. 07232_ Beams of light sweep through the air. An alarm sounds. 07233_ P-60 Hacker resets S-27 Virus, system corruption cleaned. 07237_ Critical hit. 07237_ Imp. Arc Projector destroyed. 07241_ Carbon-fiber Leg destroyed. 07242_ Beams of light sweep through the air. An alarm sounds. 07243_ Imp. Carbon-fiber Leg destroyed. 07247_ Adv. Heat Sink destroyed. 07252_ Axe destroyed. Map ----- +----------------------------------------------------+ | ?????????????????????????????????????????????????? | | ?????????????????????????????????????????????????? | | ?????????????????????????????????????????????????? | | ?????????????????????????????????????????????????? | | ?????????????????????????????????????????????????? | | ?????????????????????????????????????????????????? | | ?????????????????????????????????????????????????? | | ?????????????????????????????????????????????????? | | ?????????????????????????? ??????????????????????? | | ????????????????????????? #????????????????????? | | ??????????????#?????????? #????????????????????? | | ?????????????## ????????? #????????????????????? | | ??????????????+ ????????? #????????????????????? | | ??????????????# ???????? % #????????????????????? | | ?????????????## ##""""## #????????????????????? | | ????# ###+### #????????????????????? | | ????# #????????????????????? | | ????# #????????????????????? | | ??????????#### ## ## #????????????????????? | | ???????????### ## ## ###??????????????????? | | ???????????# #??????????????????? | | ???????????# p #??????????????????? | | ???????????# s #??????????????????? | | ???????????# s #??????????????????? | | ???????????### ## ##s ###??????????????????? | | ????????????## ## ##@ ##########???????????? | | ?????????? #???????????? | | ?????????? #???????????? | | ???????? ####### #???????????? | | ??????? ###########""""## ##?????# #???????????? | | ????????????????????????# #??????# #???????????? | | ????????????????????????# #??????# #???????????? | | ????????????????????????# #??????# #???????????? | | ????????????????????????# #??????# #???######""" | | ????????????????????????# #??????# #???# | | ????????????????????????# #??????# #???# ####### | | ????????????????????????# ######## #???# #?????? | | ????????????????????????# ##### #?????? | | ????????????????????????# #?????? | | ????????????????????????########### #######?????? | | ??????????????????????????????????# #???????????? | | ??????????????????????????????????# #???????????? | | ??????????????????????????????????# #???????????? | | ??????????????????????????????????# #???????????? | | ??????????????????????????????????# #???????????? | | ??????????????????????????????????# ############# | | ??????????????????????????????????# | | ??????????????????????????????????# | | ??????????????????????????????????############# | | ??????????????????????????????????????????????# | +----------------------------------------------------+ Best States ------------- Heat Dissipation 53 Energy Generation 16 Energy Capacity 290 Matter Stores 300 Matter Capacity 300 Sight Range 22 Terrain Scan Density 10 Armor Coverage 450 Weapon Cycling 30 Evasion (%) 40 Targeting Accuracy 22 Recoil Reduction 1 Offensive Hacking 10 Defensive Hacking 10 Relay Coupler Types 60 Relay Coupler Value 3 Item Schematics ----------------- None Robot Schematics ------------------ None Fabricated ------------ Nothing Alien Tech Used ----------------- None Achievements -------------- None Challenges ------------ None Game ------ Seed TransmissionSystemPrototype Manual? 0 Play Time 00:40:32 Cumulative 189.5 hours Start 2021.05.07 @ 18:55:09 End 2021.05.07 @ 20:06:47 Sessions 3 Manual Loads 0 Difficulty Rogue Special Mode None Game No. 373 Rogue 219 Adventurer 148 Explorer 6 Win Type - Total 3 Types 3/0/0/0/0/0/0/0/0 Lore% 72 Gallery% 83 Achievement% 60 Wizard Run 0 Options --------- ASCII 0 Keyboard 0 Movement Numpad Keybinds 0 Fullscreen 1 Font 18/CogNarrow Map View 76x50 Tactical HUD 1 Map Filters NONE Filters NONE Steam 1 RUN: 0cdcf989-a50c-4142-9bc8-87966715f841